bitfinex-derivatives/quotes_BTCF0:USTF0_20250318
["timestamp","ask_amount","ask_price","bid_price","bid_amount"]
[1742258228579,0.1789833,83815.0,83814.0,0.4936213]
[1742258228580,0.2119833,83815.0,83814.0,0.4936213]
[1742258228877,0.2119833,83815.0,83814.0,0.2136213]
[1742258229074,0.2119833,83815.0,83814.0,0.0943]
[1742258229262,0.2119833,83815.0,83814.0,0.0309]
[1742258238780,0.2119833,83815.0,83814.0,0.1804213]
[1742258238978,0.2119833,83815.0,83814.0,0.0611]
[1742258239677,0.2119833,83815.0,83814.0,0.1804213]
[1742258242588,0.1789833,83815.0,83814.0,0.1804213]
[1742258246287,0.2398833,83815.0,83814.0,0.1804213]
[1742258249888,0.1789833,83815.0,83814.0,0.1804213]
[1742258250191,0.01171533,83817.0,83816.0,0.1193185]
[1742258250386,0.119317,83817.0,83816.0,0.5093185]
[1742258250586,0.119317,83817.0,83816.0,0.5714185]
[1742258250982,0.119317,83817.0,83816.0,0.4614185]
[1742258251994,0.19430309,83817.0,83816.0,0.4614185]
[1742258252786,0.19430309,83817.0,83816.0,0.4921185]
[1742258256580,0.13100309,83817.0,83816.0,0.4921185]
[1742258257097,0.13100309,83817.0,83816.0,0.5921185]
[1742258257682,0.13100309,83817.0,83816.0,0.4921185]
[1742258258593,0.16420309,83817.0,83816.0,0.4921185]
[1742258261097,0.11400309,83817.0,83816.0,0.4921185]
[1742258261297,0.14460309,83817.0,83816.0,0.4921185]
[1742258263197,0.16420309,83817.0,83816.0,0.5921185]
[1742258263494,0.01168609,83817.0,83816.0,0.5921185]
[1742258263704,0.00017894,83819.0,83816.0,0.5921185]
[1742258263705,0.1193158,83818.0,83817.0,0.1789741]
[1742258263999,0.11949314,83819.0,83818.0,0.1193156]
[1742258264193,0.11949314,83819.0,83818.0,0.4693156]
[1742258264394,0.11949314,83819.0,83818.0,0.5328156]
[1742258264998,0.15219314,83819.0,83818.0,0.5328156]
[1742258265501,0.11949314,83819.0,83818.0,0.5328156]
[1742258265801,0.15219314,83819.0,83818.0,0.5328156]
[1742258265992,0.15219314,83819.0,83818.0,0.6479756]
[1742258267287,0.16401566,83819.0,83818.0,0.6479756]
[1742258267701,0.19631566,83819.0,83818.0,0.6479756]
[1742258272105,0.19631566,83819.0,83818.0,0.5479756]
[1742258277402,0.19631566,83819.0,83818.0,0.4328156]
[1742258277603,0.19631566,83819.0,83818.0,0.5477756]
[1742258280911,0.19631566,83819.0,83818.0,0.39586]
[1742258281107,0.19631566,83819.0,83818.0,0.14586]
[1742258281610,0.19631566,83819.0,83818.0,0.2651756]
[1742258282313,0.19631566,83819.0,83818.0,0.2977756]
[1742258292909,0.19631566,83819.0,83818.0,0.5577756]
[1742258293111,0.19631566,83819.0,83818.0,0.6677756]
[1742258297721,0.04470146,83819.0,83818.0,0.6677756]
[1742258299216,0.04470146,83819.0,83818.0,0.68155183]
[1742258300218,0.04470146,83819.0,83818.0,0.6677756]
[1742258300719,0.01200146,83819.0,83818.0,0.6677756]
[1742258300923,0.01200146,83819.0,83818.0,0.7777756]
[1742258301919,0.13131566,83819.0,83818.0,0.7777756]
[1742258302719,0.01200146,83819.0,83818.0,0.7777756]
[1742258303520,0.04400146,83819.0,83818.0,0.7777756]
[1742258303721,0.04400146,83819.0,83818.0,0.6677756]
[1742258303919,0.16331566,83819.0,83818.0,0.6677756]
[1742258304219,0.16331566,83819.0,83818.0,0.68155927]
[1742258304421,0.19641566,83819.0,83818.0,0.68155888]
[1742258305229,0.19641566,83819.0,83818.0,0.6677756]
[1742258307130,0.01200146,83819.0,83818.0,0.68159338]
[1742258307425,0.04330146,83819.0,83818.0,0.68159338]
[1742258307620,0.16261566,83819.0,83818.0,0.68159338]
[1742258308325,0.16261566,83819.0,83818.0,0.68158802]
[1742258310822,0.16261566,83819.0,83818.0,0.56227242]
[1742258311027,0.16261566,83819.0,83818.0,0.68158802]
[1742258311328,0.16261566,83819.0,83818.0,0.6677756]
[1742258320035,0.19491566,83819.0,83818.0,0.6677756]
[1742258320236,0.19491566,83819.0,83818.0,0.6777756]
[1742258331841,0.13131566,83819.0,83818.0,0.6142756]
[1742258336854,0.01200146,83819.0,83818.0,0.6142756]
[1742258337742,0.01200146,83819.0,83818.0,0.7242756]
[1742258339857,0.00017894,83819.0,83818.0,0.7242756]
[1742258341147,0.00017894,83819.0,83818.0,0.73805585]
[1742258342256,0.00017894,83819.0,83818.0,0.62807151]
[1742258342453,0.00017894,83819.0,83818.0,0.73807151]
[1742258344351,0.00017894,83819.0,83818.0,0.73811813]
[1742258347968,0.00017894,83819.0,83818.0,0.62811813]
[1742258348262,0.11452,83845.0,83835.0,0.1789336]
[1742258348463,0.0596457,83836.0,83835.0,0.1789336]
[1742258348656,0.01177387,83836.0,83835.0,0.1789336]
[1742258348865,0.11929,83836.0,83835.0,0.1789336]
[1742258349563,0.1313401,83836.0,83835.0,0.1789336]
[1742258349764,0.1192914,83835.0,83834.0,4e-05]
[1742258350557,0.1193014,83828.0,83826.0,0.11452]
[1742258350762,0.4801014,83828.0,83821.0,0.1193108]
[1742258351265,0.4801014,83828.0,83821.0,0.2386211]
[1742258351565,0.4801014,83828.0,83822.0,0.1193096]
[1742258352149,0.4801014,83828.0,83826.0,4e-05]
[1742258354263,0.5438014,83828.0,83826.0,4e-05]
[1742258354867,0.5438014,83828.0,83826.0,0.06284]
[1742258355057,0.5438014,83828.0,83826.0,0.1821442]
[1742258355251,0.5438014,83828.0,83827.0,0.03117894]
[1742258355459,0.5438014,83828.0,83827.0,0.06297894]
[1742258357754,0.5438014,83828.0,83827.0,0.18228174]
[1742258358574,0.1830014,83828.0,83827.0,0.18228174]
[1742258362677,0.1830014,83828.0,83827.0,0.06297894]
[1742258363866,0.1830014,83828.0,83827.0,0.18228174]
[1742258371374,0.1830014,83828.0,83827.0,0.06297894]
[1742258372187,0.1830014,83828.0,83827.0,0.18228174]
[1742258372376,0.1520014,83828.0,83827.0,0.18228174]
[1742258373675,0.1193014,83828.0,83827.0,0.18228174]
[1742258379382,0.0596499,83830.0,83829.0,0.1193]
[1742258379583,0.0596499,83830.0,83829.0,0.3493]
[1742258379777,0.0596499,83830.0,83829.0,0.4114]
[1742258379974,0.0596499,83830.0,83829.0,0.5114]
[1742258380774,0.0596499,83830.0,83829.0,0.4114]
[1742258380975,0.0596499,83830.0,83829.0,0.5214]
[1742258382584,0.0912499,83830.0,83829.0,0.5214]
[1742258384078,0.1192961,83832.0,83831.0,0.1192971]
[1742258384286,0.1192941,83834.0,83833.0,0.1192928]
[1742258384485,0.0301,83835.0,83834.0,0.1192928]
[1742258384486,0.1493928,83835.0,83834.0,0.1192928]
[1742258384876,0.1798928,83835.0,83834.0,0.1192928]
[1742258385776,0.1798928,83835.0,83834.0,0.13286605]
[1742258386378,0.1798928,83835.0,83834.0,0.1192928]
[1742258387085,0.1192928,83834.0,83833.0,0.11448]
[1742258387284,0.1192928,83834.0,83833.0,0.5137743]
[1742258387483,0.1815928,83834.0,83833.0,0.5137743]
[1742258388075,0.1192928,83834.0,83833.0,0.7637743]
[1742258388286,0.1192928,83834.0,83833.0,0.5137743]
[1742258388877,0.0321,83835.0,83833.0,0.5137743]
[1742258388878,0.0321,83835.0,83834.0,0.1192928]
[1742258389187,0.05981924,83844.0,83843.0,0.11928]
[1742258390477,0.09211924,83844.0,83843.0,0.36928]
[1742258393987,0.03247894,83844.0,83843.0,0.59928]
[1742258394179,0.00017894,83844.0,83843.0,0.84114344]
[1742258394575,0.0596251,83864.0,83863.0,0.0596241]
[1742258394784,0.1788784,83864.0,83863.0,0.2896241]
[1742258395391,0.0596251,83864.0,83863.0,0.2896241]
[1742258395583,0.0903251,83864.0,83863.0,0.2896241]
[1742258396479,0.0903251,83864.0,83863.0,0.3205241]
[1742258397489,0.0903251,83864.0,83863.0,0.3509241]
[1742258397882,0.0903251,83864.0,83863.0,0.3827241]
[1742258399595,0.0307,83864.0,83863.0,0.4927241]
[1742258400095,0.0307,83864.0,83863.0,0.5927241]
[1742258400486,0.00068,83868.0,83867.0,0.1192459]
[1742258400789,0.0314,83869.0,83868.0,0.1192445]
[1742258400991,0.0314,83869.0,83868.0,0.7292445]
[1742258401182,0.0314,83869.0,83868.0,0.7928445]
[1742258401992,0.1506431,83869.0,83868.0,0.7928445]
[1742258402209,0.1506431,83869.0,83868.0,0.7028445]
[1742258402384,0.1506431,83869.0,83868.0,0.6718445]
[1742258402588,0.1506431,83869.0,83868.0,0.4218445]
[1742258402985,0.1833431,83869.0,83868.0,0.4218445]
[1742258403187,0.1833431,83869.0,83868.0,0.3026]
[1742258403393,0.1833431,83869.0,83868.0,0.4218445]
[1742258403588,0.1833431,83869.0,83868.0,0.3026]
[1742258403800,0.1833431,83869.0,83868.0,0.27]
[1742258404796,0.1833431,83869.0,83867.0,4e-05]
[1742258404797,0.1192445,83868.0,83867.0,4e-05]
[1742258405302,0.1843445,83868.0,83867.0,4e-05]
[1742258406086,0.1192516,83863.0,83862.0,0.0322]
[1742258406293,0.1192516,83863.0,83862.0,0.291453]
[1742258406601,0.1192516,83863.0,83862.0,0.323453]
[1742258407003,0.1819516,83863.0,83862.0,0.323453]
[1742258408602,0.1819516,83863.0,83862.0,0.291453]
[1742258409601,0.1192587,83858.0,83857.0,0.00068]
[1742258409792,0.1192615,83856.0,83855.0,0.00017894]
[1742258410402,0.1836615,83856.0,83855.0,0.00017894]
[1742258412195,0.19567835,83856.0,83855.0,0.00017894]
[1742258416005,0.1192815,83842.0,83840.0,0.11444]
[1742258416206,0.1192815,83842.0,83841.0,0.0725]
[1742258417012,0.1820815,83842.0,83841.0,0.0941]
[1742258417306,0.1820815,83842.0,83841.0,0.0951]
[1742258417494,0.19389789,83842.0,83841.0,0.0951]
[1742258419610,0.19389789,83842.0,83841.0,0.0318]
[1742258421010,0.1820815,83842.0,83841.0,0.0318]
[1742258421509,0.2965615,83842.0,83841.0,0.0318]
[1742258422410,0.2965615,83842.0,83841.0,0.0625]
[1742258423019,0.2965615,83842.0,83841.0,0.1817829]
[1742258426312,0.2653615,83842.0,83841.0,0.1817829]
[1742258429403,0.1508815,83842.0,83841.0,0.1817829]
[1742258429608,0.3608,83845.0,83843.0,0.11928]
[1742258429802,0.4800779,83845.0,83844.0,0.2171786]
[1742258430008,0.4800779,83845.0,83844.0,0.4571786]
[1742258430519,0.4800779,83845.0,83844.0,0.6871786]
[1742258431421,0.1192779,83845.0,83844.0,0.6871786]
[1742258432719,0.1192779,83845.0,83844.0,0.4471786]
[1742258434310,0.1521779,83845.0,83844.0,0.4471786]
[1742258436223,0.1192779,83845.0,83844.0,0.4471786]
[1742258439522,0.1513779,83845.0,83844.0,0.4471786]
[1742258439823,0.16359802,83845.0,83844.0,0.2171786]
[1742258440418,0.16359802,83845.0,83844.0,0.0979]
[1742258440727,0.16359802,83845.0,83844.0,0.032]
[1742258445825,0.16359802,83845.0,83844.0,0.0638]
[1742258449529,0.19359802,83845.0,83844.0,0.0638]
[1742258455926,0.19359802,83845.0,83844.0,0.032]
[1742258459132,0.30803802,83845.0,83844.0,0.032]
[1742258462936,0.1192829,83841.0,83840.0,4e-05]
[1742258463343,0.2127829,83841.0,83840.0,4e-05]
[1742258463738,0.0596442,83838.0,83833.0,0.00017894]
[1742258463939,0.3608,83836.0,83833.0,0.00017894]
[1742258464133,0.1192928,83834.0,83833.0,0.00017894]
[1742258464547,0.2127928,83834.0,83833.0,0.00017894]
[1742258464747,0.2117928,83834.0,83833.0,0.00017894]
[1742258465246,0.2117928,83834.0,83833.0,0.03147894]
[1742258465744,0.2117928,83834.0,83833.0,0.03247894]
[1742258466345,0.1816928,83834.0,83833.0,0.03447894]
[1742258467240,0.1816928,83834.0,83833.0,0.03147894]
[1742258471741,0.5424928,83834.0,83833.0,0.03147894]
[1742258472334,0.5743928,83834.0,83833.0,0.00017894]
[1742258472649,0.1193128,83820.0,83815.0,0.1193195]
[1742258472837,0.1193128,83820.0,83815.0,0.119319]
[1742258473250,0.1193128,83820.0,83817.0,0.1193168]
[1742258473438,0.1193128,83820.0,83819.0,0.4801142]
[1742258473841,0.1193128,83820.0,83819.0,0.4831142]
[1742258474039,0.16296366,83820.0,83819.0,0.4831142]
[1742258474343,0.16296366,83820.0,83819.0,0.3658]
[1742258474647,0.16296366,83820.0,83819.0,0.3958]
[1742258474849,0.1193128,83820.0,83819.0,0.5151142]
[1742258477273,0.1193128,83820.0,83819.0,0.8951142]
[1742258477457,0.0596556,83822.0,83821.0,0.1193113]
[1742258478343,0.0596556,83822.0,83821.0,0.1522113]
[1742258478545,0.0596556,83822.0,83821.0,0.1542113]
[1742258479844,0.0596556,83822.0,83821.0,0.1552113]
[1742258480046,0.0596556,83822.0,83821.0,0.0359]
[1742258480751,0.1228556,83822.0,83821.0,0.0359]
[1742258484960,0.1228556,83822.0,83821.0,0.003]
[1742258487558,0.1228556,83822.0,83821.0,0.0359]
[1742258487955,0.1228556,83822.0,83821.0,0.003]
[1742258489355,0.1228556,83822.0,83821.0,0.0362]
[1742258491163,0.1228556,83822.0,83821.0,0.003]
[1742258498058,0.1536556,83822.0,83821.0,0.003]
[1742258499662,0.1536556,83822.0,83821.0,0.0356]
[1742258499864,0.5144556,83822.0,83821.0,0.0356]
[1742258508067,0.5144556,83822.0,83821.0,0.0678]
[1742258509867,0.4836556,83822.0,83821.0,0.0678]
[1742258519681,0.8444556,83822.0,83821.0,0.0678]
[1742258520477,0.8141556,83822.0,83821.0,0.0678]
[1742258520873,0.8441556,83822.0,83821.0,0.0678]
[1742258525882,0.0596603,83815.0,83811.0,0.00017894]
[1742258526084,0.1193242,83812.0,83811.0,0.00017894]
[1742258526586,0.1847242,83812.0,83811.0,0.00017894]
[1742258527184,0.1847242,83812.0,83811.0,0.00517894]
[1742258527385,0.2168242,83812.0,83811.0,0.00917894]
[1742258528087,0.1847242,83812.0,83811.0,0.00917894]
[1742258528282,0.2992042,83812.0,83811.0,0.00917894]
[1742258528478,0.2992042,83812.0,83811.0,0.00517894]
[1742258529891,0.2992042,83812.0,83811.0,0.00017894]
[1742258537512,0.6600042,83812.0,83811.0,0.00017894]
[1742258539017,0.5455242,83812.0,83811.0,0.00017894]
[1742258539219,0.6600042,83812.0,83811.0,0.00017894]
[1742258544520,0.5455242,83812.0,83811.0,0.00017894]
[1742258544718,0.6600042,83812.0,83811.0,0.00017894]
[1742258546417,0.5455242,83812.0,83811.0,0.00017894]
[1742258546614,0.6600042,83812.0,83811.0,0.00017894]
[1742258549723,0.5455242,83812.0,83811.0,0.00017894]
[1742258549926,0.6599642,83812.0,83811.0,0.00017894]
[1742258556824,0.5455242,83812.0,83811.0,0.00017894]
[1742258557029,0.6599642,83812.0,83811.0,0.00017894]
[1742258559829,0.6599642,83812.0,83811.0,0.06317894]
[1742258560930,0.5455242,83812.0,83811.0,0.06317894]
[1742258561125,0.6599642,83812.0,83811.0,0.06317894]
[1742258563929,0.5455242,83812.0,83811.0,0.06317894]
[1742258564135,0.6599642,83812.0,83811.0,0.06317894]
[1742258568437,0.5455242,83812.0,83811.0,0.06317894]
[1742258568630,0.6599642,83812.0,83811.0,0.06317894]
[1742258570326,0.6599642,83812.0,83811.0,0.00017894]
[1742258570536,0.6599642,83812.0,83795.0,0.3608]
[1742258570537,0.1790175,83798.0,83797.0,0.0596723]
[1742258570730,0.1790175,83798.0,83797.0,0.4564723]
[1742258571437,0.2450175,83798.0,83797.0,0.5758127]
[1742258571824,0.2450175,83798.0,83797.0,0.5798127]
[1742258572640,0.2450175,83798.0,83797.0,0.5828127]
[1742258573323,0.25673943,83798.0,83797.0,0.5828127]
[1742258574236,0.25673943,83798.0,83797.0,0.4634723]
[1742258576343,0.25673943,83798.0,83797.0,0.5231455]
[1742258578231,0.25673943,83798.0,83797.0,0.4038]
[1742258578437,0.25673943,83798.0,83797.0,0.1238]
[1742258578636,0.25673943,83798.0,83797.0,0.1038]
[1742258578829,0.37117943,83798.0,83797.0,0.1038]
[1742258579245,0.25673943,83798.0,83797.0,0.1038]
[1742258579441,0.37117943,83798.0,83797.0,0.1038]
[1742258579747,0.25673943,83798.0,83797.0,0.1008]
[1742258579940,0.37117943,83798.0,83797.0,0.1008]
[1742258580546,0.37117943,83798.0,83797.0,0.2201455]
[1742258580940,0.25673943,83798.0,83797.0,0.2181455]
[1742258581142,0.25673943,83798.0,83797.0,0.0988]
[1742258581345,0.37117943,83798.0,83797.0,0.0988]
[1742258581648,0.37117943,83798.0,83797.0,0.2181455]
[1742258582648,0.37117943,83798.0,83797.0,0.0988]
[1742258585646,0.37117943,83798.0,83797.0,0.002]
[1742258588549,0.3594575,83798.0,83797.0,0.1213455]
[1742258588742,0.2450175,83798.0,83797.0,0.1213455]
[1742258589248,0.2450175,83798.0,83797.0,0.002]
[1742258589648,0.25719755,83798.0,83797.0,0.0634]
[1742258590045,0.25719755,83798.0,83797.0,0.002]
[1742258590737,0.25719755,83798.0,83797.0,0.0322]
[1742258590943,0.25719755,83798.0,83797.0,0.0634]
[1742258591949,0.25719755,83798.0,83797.0,0.002]
[1742258594057,0.37163755,83798.0,83797.0,0.002]
[1742258594456,0.25719755,83798.0,83797.0,0.002]
[1742258594649,0.37163755,83798.0,83797.0,0.002]
[1742258595655,0.25719755,83798.0,83797.0,0.002]
[1742258595855,0.37163755,83798.0,83797.0,0.002]
[1742258602446,0.25719755,83798.0,83797.0,0.002]
[1742258603851,0.37163755,83798.0,83797.0,0.002]
[1742258606946,0.25719755,83798.0,83797.0,0.002]
[1742258607256,0.1193555,83790.0,83789.0,0.00017894]
[1742258607558,0.4801555,83790.0,83789.0,0.23017894]
[1742258607858,0.36148,83800.0,83799.0,0.1193427]
[1742258608062,0.4801412,83800.0,83799.0,0.3693427]
[1742258608959,0.1193412,83800.0,83799.0,0.41151016]
[1742258609166,0.1512412,83800.0,83799.0,0.4322412]
[1742258609560,0.0319,83800.0,83799.0,0.4322412]
[1742258609865,0.11951164,83806.0,83805.0,0.1193341]
[1742258610164,0.11951164,83806.0,83805.0,0.3993341]
[1742258610549,0.11951164,83806.0,83805.0,0.50454014]
[1742258610765,0.00017894,83806.0,83805.0,0.50454014]
[1742258610963,0.00017894,83806.0,83805.0,0.61898014]
[1742258611165,0.00117894,83806.0,83805.0,0.70898014]
[1742258611667,0.0596629,83811.0,83805.0,0.70898014]
[1742258611668,0.4801187,83817.0,83814.0,0.1789785]
[1742258611862,0.1524185,83816.0,83815.0,0.2125199]
[1742258612067,0.1524185,83816.0,83815.0,0.4625199]
[1742258612673,0.0331,83816.0,83815.0,0.4625199]
[1742258612966,0.24874916,83822.0,83821.0,0.1193113]
[1742258613153,0.24874916,83822.0,83821.0,0.7337513]
[1742258613458,0.11383128,83822.0,83821.0,1.2045513]
[1742258613863,0.11383128,83822.0,83821.0,1.68813756]
[1742258614059,0.06393128,83822.0,83821.0,1.68813756]
[1742258614263,0.06393128,83822.0,83821.0,1.43813756]
[1742258614457,0.06493128,83822.0,83821.0,1.69813756]
[1742258614657,0.06493128,83822.0,83821.0,1.66813756]
[1742258615858,0.001,83822.0,83821.0,1.66813756]
[1742258616363,0.004,83822.0,83821.0,1.66813756]
[1742258616867,0.003,83822.0,83821.0,2.07973756]
[1742258619864,0.003,83822.0,83821.0,1.84973756]
[1742258620060,0.003,83822.0,83821.0,2.07973756]
[1742258622264,0.003,83822.0,83821.0,1.92973756]
[1742258622655,0.003,83822.0,83821.0,1.69973756]
[1742258622867,0.003,83822.0,83821.0,1.97973756]
[1742258623167,0.003,83822.0,83821.0,1.69973756]
[1742258623361,0.003,83822.0,83821.0,1.96973756]
[1742258623584,0.003,83822.0,83821.0,1.93973756]
[1742258624364,0.003,83822.0,83821.0,1.69973756]
[1742258624565,0.003,83822.0,83821.0,1.93973756]
[1742258625462,0.003,83822.0,83821.0,1.97965756]
[1742258626059,0.003,83822.0,83821.0,1.94965756]
[1742258626769,0.003,83822.0,83821.0,1.96965756]
[1742258627159,0.0352,83822.0,83821.0,1.96965756]
[1742258628168,0.0352,83822.0,83821.0,1.92965756]
[1742258628362,0.0352,83822.0,83821.0,1.93965756]
[1742258629166,0.0352,83822.0,83821.0,1.92965756]
[1742258629658,0.0662,83822.0,83821.0,1.92965756]
[1742258629854,0.0662,83822.0,83821.0,1.69965756]
[1742258630055,0.1855099,83822.0,83821.0,1.69965756]
[1742258630256,0.1855099,83822.0,83821.0,1.95965756]
[1742258630472,0.0662,83822.0,83821.0,1.92965756]
[1742258630671,0.0662,83822.0,83821.0,1.69965756]
[1742258631762,0.0662,83822.0,83821.0,1.97965756]
[1742258632075,0.0662,83822.0,83821.0,1.69965756]
[1742258632261,0.0662,83822.0,83821.0,1.95965756]
[1742258632462,0.0662,83822.0,83821.0,1.93965756]
[1742258633270,0.0662,83822.0,83821.0,1.94965756]
[1742258633464,0.0662,83822.0,83821.0,1.69965756]
[1742258633672,0.0662,83822.0,83821.0,1.97965756]
[1742258634270,0.1855099,83822.0,83821.0,1.69965756]
[1742258634469,0.1855099,83822.0,83821.0,1.63495756]
[1742258634769,0.1855099,83822.0,83821.0,1.52059756]
[1742258634971,0.1855099,83822.0,83821.0,1.63495756]
[1742258637569,0.1855099,83822.0,83821.0,1.2824]
[1742258637764,0.1855099,83822.0,83821.0,0.6208]
[1742258637969,0.1855099,83822.0,83821.0,0.53]
[1742258638164,0.1855099,83822.0,83821.0,0.6393113]
[1742258638378,0.1855099,83822.0,83821.0,0.8693113]
[1742258638564,0.1855099,83822.0,83821.0,0.9093113]
[1742258638764,0.1855099,83822.0,83821.0,0.3793113]
[1742258638965,0.1855099,83822.0,83821.0,0.6393113]
[1742258639771,0.1855099,83822.0,83821.0,0.52]
[1742258639974,0.1855099,83822.0,83821.0,0.25]
[1742258640273,0.1193185,83816.0,83815.0,0.4801194]
[1742258640465,0.1193185,83816.0,83815.0,0.9501194]
[1742258640671,0.1193185,83816.0,83815.0,1.2001194]
[1742258641177,0.1847185,83816.0,83815.0,1.2101194]
[1742258641362,0.1847185,83816.0,83815.0,0.9501194]
[1742258641567,0.1847185,83816.0,83815.0,1.2001194]
[1742258641980,0.1857185,83816.0,83815.0,0.8208]
[1742258642663,0.1857185,83816.0,83815.0,1.0608]
[1742258642867,0.1857185,83816.0,83815.0,0.8208]
[1742258643466,0.1857185,83816.0,83815.0,1.0808]
[1742258643778,0.1857185,83816.0,83815.0,0.8808]
[1742258644169,0.1857185,83816.0,83815.0,0.9208]
[1742258644369,0.119327,83810.0,83809.0,4e-05]
[1742258645179,0.183827,83810.0,83809.0,4e-05]
[1742258645478,0.183827,83810.0,83807.0,0.00017894]
[1742258645479,0.1193298,83808.0,83807.0,0.00017894]
[1742258645677,0.1183298,83808.0,83807.0,0.00017894]
[1742258646681,0.1193298,83808.0,83807.0,0.00017894]
[1742258649782,0.1193541,83791.0,83789.0,0.1144]
[1742258649976,0.1193541,83791.0,83790.0,1.1608]
[1742258650277,0.1193541,83791.0,83790.0,0.9308]
[1742258650866,0.1193541,83791.0,83790.0,1.0501555]
[1742258651273,0.1193541,83791.0,83790.0,1.0531555]
[1742258652083,0.1193541,83791.0,83790.0,0.9338]
[1742258652677,0.1193541,83791.0,83790.0,0.9378]
[1742258653075,0.1193541,83791.0,83790.0,1.0571555]
[1742258653383,0.1193541,83791.0,83790.0,1.0471555]
[1742258653589,0.1193541,83791.0,83790.0,0.9278]
[1742258653986,0.1193541,83791.0,83790.0,0.8878]
[1742258654683,0.1193541,83791.0,83790.0,0.9278]
[1742258655187,0.13143977,83791.0,83790.0,0.9278]
[1742258655387,0.13143977,83791.0,83790.0,0.6478]
[1742258656786,0.13143977,83791.0,83790.0,0.6438]
[1742258656985,0.13143977,83791.0,83790.0,0.287]
[1742258656986,0.49223977,83791.0,83790.0,0.287]
[1742258657189,0.13143977,83791.0,83790.0,0.247]
[1742258657378,0.13143977,83791.0,83790.0,0.246]
[1742258657785,0.24611977,83791.0,83790.0,0.246]
[1742258658386,0.24611977,83791.0,83790.0,0.24]
[1742258658580,0.24611977,83791.0,83790.0,0.245]
[1742258659187,0.24611977,83791.0,83790.0,0.241]
[1742258659397,0.24611977,83791.0,83790.0,0.243]
[1742258659783,0.24611977,83791.0,83790.0,0.503]
[1742258659984,0.24607977,83791.0,83790.0,0.503]
[1742258660284,0.24607977,83791.0,83790.0,0.523]
[1742258660785,0.24607977,83791.0,83790.0,0.243]
[1742258661181,0.24607977,83791.0,83790.0,0.523]
[1742258661389,0.24607977,83791.0,83790.0,0.243]
[1742258662697,0.2339941,83791.0,83790.0,0.483]
[1742258663098,0.2339941,83791.0,83790.0,0.243]
[1742258664097,0.24568086,83791.0,83790.0,0.243]
[1742258665688,0.30708086,83791.0,83790.0,0.523]
[1742258665983,0.30708086,83791.0,83790.0,0.243]
[1742258666689,0.30708086,83791.0,83790.0,0.2754]
[1742258667786,0.19244086,83791.0,83790.0,0.2754]
[1742258668498,0.19244086,83791.0,83790.0,0.3061]
[1742258668702,0.19244086,83791.0,83790.0,0.6654555]
[1742258668895,0.19244086,83791.0,83790.0,0.6854555]
[1742258669288,0.19244086,83791.0,83790.0,0.5661]
[1742258670289,0.19244086,83791.0,83790.0,0.5761]
[1742258671196,0.19244086,83791.0,83790.0,0.5561]
[1742258671394,0.19244086,83791.0,83790.0,0.3061]
[1742258671595,0.19244086,83791.0,83790.0,0.5461]
[1742258672200,0.19244086,83791.0,83790.0,0.243]
[1742258672504,0.19244086,83791.0,83790.0,0.523]
[1742258673298,0.19244086,83791.0,83790.0,0.243]
[1742258673995,0.19244086,83791.0,83790.0,0.473]
[1742258674195,0.19244086,83791.0,83790.0,0.243]
[1742258674396,0.19244086,83791.0,83790.0,0.513]
[1742258674897,0.19244086,83791.0,83790.0,0.243]
[1742258676901,0.19244086,83791.0,83790.0,0.523]
[1742258677105,0.19244086,83791.0,83790.0,0.243]
[1742258677695,0.19244086,83791.0,83790.0,0.513]
[1742258677896,0.19244086,83791.0,83790.0,0.243]
[1742258678105,0.19244086,83791.0,83790.0,0.513]
[1742258678300,0.19244086,83791.0,83790.0,0.503]
[1742258678501,0.19244086,83791.0,83790.0,0.5684]
[1742258678803,0.19244086,83791.0,83790.0,0.5384]
[1742258678997,0.19244086,83791.0,83790.0,0.3084]
[1742258679406,0.20415956,83791.0,83790.0,0.5884]
[1742258680105,0.20415906,83791.0,83790.0,0.5884]
[1742258680807,0.20415906,83791.0,83790.0,0.3084]
[1742258681404,0.19244086,83791.0,83790.0,0.3084]
[1742258681905,0.19244086,83791.0,83790.0,0.243]
[1742258682403,0.20411946,83791.0,83790.0,0.243]
[1742258683194,0.20412551,83791.0,83790.0,0.243]
[1742258687302,0.41731525,83791.0,83790.0,0.243]
[1742258690912,0.41731897,83791.0,83790.0,0.243]
[1742258691901,0.4056306,83791.0,83790.0,0.243]
[1742258693011,0.41729744,83791.0,83790.0,0.243]
[1742258696909,0.4056306,83791.0,83790.0,0.243]
[1742258697914,0.19244086,83791.0,83790.0,0.243]
[1742258700507,0.19244086,83791.0,83790.0,0.6223555]
[1742258700710,0.19244086,83791.0,83790.0,0.6023555]
[1742258700912,0.19244086,83791.0,83790.0,0.3623555]
[1742258701108,0.19244086,83791.0,83790.0,0.5762]
[1742258701711,0.22244086,83791.0,83790.0,0.6855555]
[1742258701915,0.22244086,83791.0,83790.0,0.7055555]
[1742258702108,0.22244086,83791.0,83790.0,0.4255555]
[1742258702309,0.22244086,83791.0,83790.0,0.7055555]
[1742258703615,0.2107541,83791.0,83790.0,0.5862]
[1742258703819,0.2107541,83791.0,83790.0,0.5462]
[1742258704518,0.2107541,83791.0,83790.0,0.6555555]
[1742258705022,0.2107541,83791.0,83790.0,0.5962]
[1742258705320,0.2107541,83791.0,83790.0,0.8662]
[1742258706223,0.2107541,83791.0,83790.0,0.8162]
[1742258706713,0.2107541,83791.0,83790.0,0.5562]
[1742258707109,0.2107541,83791.0,83790.0,0.5362]
[1742258707319,0.2107541,83791.0,83790.0,0.503]
[1742258707511,0.2107541,83791.0,83790.0,0.733]
[1742258707711,0.2107541,83791.0,83790.0,0.753]
[1742258707921,0.2215222,83791.0,83790.0,0.483]
[1742258708107,0.2215222,83791.0,83790.0,0.733]
[1742258708313,0.2215222,83791.0,83790.0,0.243]
[1742258708518,0.2215222,83791.0,83790.0,0.513]
[1742258708921,0.2107541,83791.0,83790.0,0.243]
[1742258709124,0.2107541,83791.0,83790.0,0.503]
[1742258709620,0.2107541,83791.0,83790.0,0.243]
[1742258710120,0.22157408,83791.0,83790.0,0.243]
[1742258710314,0.22157408,83791.0,83790.0,0.523]
[1742258710716,0.22157408,83791.0,83790.0,0.243]
[1742258710922,0.22157408,83791.0,83790.0,0.503]
[1742258711112,0.22157408,83791.0,83790.0,0.243]
[1742258711313,0.22157408,83791.0,83790.0,0.493]
[1742258711712,0.22157408,83791.0,83790.0,0.243]
[1742258713014,0.22157408,83791.0,83790.0,0.523]
[1742258713214,0.22157408,83791.0,83790.0,0.243]
[1742258713635,0.0596809,83786.0,83782.0,0.00017894]
[1742258713920,0.1193655,83783.0,83782.0,0.00017894]
[1742258714116,0.14195809,83783.0,83782.0,0.00017894]